bitfinex-derivatives/quotes_SOLF0:USTF0_20250630
["timestamp","ask_amount","ask_price","bid_price","bid_amount"]
[1751250217096,9.32854163,152.28,152.26,11.33901272]
[1751250217397,1.94244155,152.28,152.26,6.08681272]
[1751250217598,9.32854163,152.27,152.25,6.08681272]
[1751250217798,9.32854163,152.26,152.25,6.08681272]
[1751250218199,1.94244155,152.28,152.25,6.08681272]
[1751250218406,9.32854163,152.26,152.25,6.08681272]
[1751250218599,5.2521,152.27,152.25,6.08681272]
[1751250218799,9.32854163,152.26,152.25,6.08681272]
[1751250219500,7.19424155,152.28,152.25,8.02925427]
[1751250219700,9.32854163,152.26,152.25,13.28195427]
[1751250219999,9.32854163,152.26,152.25,8.02925427]
[1751250220307,7.19424155,152.28,152.25,8.02925427]
[1751250220500,9.32854163,152.26,152.25,8.02925427]
[1751250221204,5.2518,152.28,152.25,8.02925427]
[1751250221407,9.32854163,152.26,152.25,8.02925427]
[1751250221799,5.2518,152.28,152.25,13.28185427]
[1751250221999,9.32854163,152.26,152.25,13.28185427]
[1751250222299,5.2518,152.28,152.25,13.28185427]
[1751250222499,9.32854163,152.26,152.25,13.28185427]
[1751250222708,5.2518,152.28,152.25,13.28185427]
[1751250222909,9.32854163,152.26,152.25,13.28185427]
[1751250223109,5.2518,152.28,152.25,13.28185427]
[1751250223309,9.32854163,152.26,152.25,13.28185427]
[1751250223505,5.2518,152.28,152.25,13.28185427]
[1751250223707,9.32854163,152.26,152.25,13.28185427]
[1751250224206,5.2518,152.28,152.25,13.28185427]
[1751250224506,9.32854163,152.26,152.25,13.28185427]
[1751250225109,5.2518,152.28,152.25,13.28185427]
[1751250225410,9.32854163,152.26,152.25,13.28185427]
[1751250225708,5.2518,152.28,152.25,13.28185427]
[1751250225909,9.32854163,152.26,152.25,13.28185427]
[1751250226110,5.2518,152.28,152.25,13.28185427]
[1751250226307,9.32854163,152.26,152.25,13.28185427]
[1751250226510,5.2518,152.28,152.25,13.28185427]
[1751250226710,9.32854163,152.26,152.25,13.28185427]
[1751250227312,5.2518,152.28,152.25,13.28185427]
[1751250227515,9.32854163,152.26,152.25,11.33941272]
[1751250228612,7.19424155,152.28,152.25,11.33941272]
[1751250228814,9.32854163,152.26,152.25,11.33941272]
[1751250229013,7.19424155,152.28,152.25,11.33941272]
[1751250229311,9.32854163,152.28,152.27,1.94244155]
[1751250229510,4.3807,152.32,152.27,8.02925427]
[1751250229511,1.94244155,152.31,152.27,8.02925427]
[1751250229708,9.32854163,152.28,152.27,8.02925427]
[1751250230012,9.32854163,152.28,152.27,13.28105427]
[1751250230314,7.19324155,152.31,152.27,13.28105427]
[1751250230514,9.32854163,152.28,152.27,13.28105427]
[1751250230811,7.19324155,152.31,152.27,13.28105427]
[1751250231014,7.19344155,152.3,152.27,11.33861272]
[1751250238722,9.32854163,152.29,152.27,11.33861272]
[1751250238914,7.19344155,152.3,152.27,11.33861272]
[1751250239113,9.32854163,152.29,152.27,11.33861272]
[1751250239318,7.19344155,152.3,152.27,11.33861272]
[1751250239520,9.32854163,152.29,152.27,11.33861272]
[1751250239716,7.19344155,152.3,152.27,11.33861272]
[1751250240017,9.32854163,152.29,152.27,11.33861272]
[1751250240409,7.19344155,152.3,152.27,11.33861272]
[1751250240610,9.32854163,152.29,152.27,11.33861272]
[1751250240812,7.19344155,152.3,152.27,11.33861272]
[1751250241014,9.32854163,152.29,152.27,11.33861272]
[1751250241917,7.19344155,152.3,152.27,11.33861272]
[1751250242119,9.32854163,152.29,152.28,6.08681272]
[1751250242317,9.32854163,152.29,152.28,13.28085427]
[1751250242518,1.94244155,152.32,152.28,1.94244155]
[1751250242717,9.32854163,152.3,152.29,8.07078438]
[1751250243218,5.2504,152.32,152.3,5.2509]
[1751250243622,9.32854163,152.31,152.29,8.07078438]
[1751250243824,9.32854163,152.3,152.29,13.32188438]
[1751250244432,5.2504,152.32,152.29,13.32188438]
[1751250244625,9.32854163,152.3,152.29,13.32188438]
[1751250244819,7.19284155,152.32,152.29,11.37944283]
[1751250245117,9.32854163,152.3,152.29,11.37944283]
[1751250245313,7.19284155,152.32,152.29,11.37944283]
[1751250245518,9.32854163,152.3,152.29,11.37944283]
[1751250245818,7.19284155,152.32,152.29,11.37944283]
[1751250246119,9.32854163,152.3,152.29,11.37944283]
[1751250246324,7.19284155,152.32,152.29,11.37944283]
[1751250246528,9.32854163,152.3,152.29,11.37944283]
[1751250246822,7.19254155,152.33,152.3,5.2509]
[1751250247030,9.32854163,152.31,152.3,11.38137429]
[1751250247222,9.32854163,152.31,152.3,6.13047429]
[1751250247522,5.2503,152.32,152.3,6.12976945]
[1751250249827,14.57884163,152.32,152.3,6.12976945]
[1751250250028,5.2506,152.31,152.3,6.12976945]
[1751250251130,7.19284155,152.32,152.3,6.12976945]
[1751250251327,14.57894163,152.32,152.3,6.12976945]
[1751250252624,5.2504,152.32,152.3,6.12976945]
[1751250252923,14.57894163,152.32,152.3,6.12976945]
[1751250253433,14.57894163,152.32,152.29,13.323311]
[1751250256433,5.2507,152.31,152.29,8.072211]
[1751250256628,9.32854163,152.3,152.28,38.72976945]
[1751250257031,1.94244155,152.31,152.28,38.72976945]
[1751250257226,14.57944163,152.3,152.28,38.72976945]
[1751250257731,5.2509,152.3,152.28,38.72976945]
[1751250259534,5.2509,152.3,152.28,43.98136945]
[1751250261035,5.2509,152.3,152.28,45.923811]
[1751250261736,14.57944163,152.3,152.28,45.923811]
[1751250263636,14.57944163,152.3,152.28,43.98136945]
[1751250265541,14.57944163,152.3,152.28,38.72976945]
[1751250266232,14.57944163,152.3,152.28,43.98136945]
[1751250268932,11.27098318,152.3,152.28,38.72976945]
[1751250269138,5.2513,152.29,152.28,38.72976945]
[1751250269434,14.57984163,152.29,152.28,38.72976945]
[1751250269634,5.2513,152.29,152.28,38.72976945]
[1751250269833,7.19354155,152.3,152.28,6.12976945]
[1751250270034,9.32854163,152.29,152.28,6.12976945]
[1751250270231,7.19354155,152.3,152.28,6.12976945]
[1751250270432,9.32854163,152.29,152.28,6.12976945]
[1751250270839,7.19354155,152.3,152.28,6.12976945]
[1751250271032,9.32854163,152.29,152.28,6.12976945]
[1751250271232,5.2511,152.3,152.28,6.12976945]
[1751250271433,9.32854163,152.29,152.28,6.12976945]
[1751250272137,5.2511,152.3,152.28,6.12976945]
[1751250272341,14.57984163,152.29,152.28,6.12976945]
[1751250273443,14.57984163,152.29,152.27,15.32317168]
[1751250277037,14.57984163,152.29,152.27,10.07137168]
[1751250279238,14.57984163,152.29,152.27,8.12893013]
[1751250281443,4.3973,152.35,152.27,8.12893013]
[1751250281444,11.27098318,152.28,152.27,6.14068222]
[1751250281846,16.52258318,152.28,152.27,6.14068222]
[1751250282449,9.32854163,152.28,152.27,6.14068222]
[1751250282646,7.19384155,152.29,152.27,6.14068222]
[1751250282851,9.32854163,152.28,152.27,6.14068222]
[1751250283044,16.52258318,152.28,152.27,6.14068222]
[1751250284540,14.58014163,152.28,152.27,6.14068222]
[1751250284746,16.52258318,152.28,152.27,6.14068222]
[1751250285148,14.58014163,152.28,152.27,6.14068222]
[1751250286151,14.58014163,152.28,152.26,6.14068222]
[1751250286345,9.32854163,152.27,152.26,6.14068222]
[1751250286648,9.32854163,152.27,152.25,15.32387168]
[1751250288453,9.32854163,152.27,152.25,13.38143013]
[1751250288652,9.32854163,152.27,152.25,15.32387168]
[1751250288953,9.32854163,152.27,152.26,5.2523]
[1751250289151,1.94244155,152.31,152.26,7.19474155]
[1751250289349,9.32854163,152.29,152.27,6.13911044]
[1751250290251,9.32854163,152.29,152.27,11.39101044]
[1751250290451,9.32854163,152.29,152.27,6.13911044]
[1751250290653,9.32854163,152.29,152.27,8.08155199]
[1751250291351,9.32854163,152.29,152.27,13.33345199]
[1751250292649,9.32854163,152.29,152.27,11.39101044]
[1751250293347,9.32854163,152.29,152.27,6.13911044]
[1751250295554,9.32854163,152.29,152.27,11.39091044]
[1751250298255,9.32854163,152.29,152.27,13.33335199]
[1751250299656,9.32854163,152.29,152.28,6.13911044]
[1751250300459,7.19314155,152.31,152.28,11.39071044]
[1751250300662,9.32854163,152.29,152.28,11.39071044]
[1751250300854,7.19314155,152.31,152.28,11.39071044]
[1751250301056,9.32854163,152.29,152.28,11.39071044]
[1751250301458,7.19314155,152.31,152.28,11.39071044]
[1751250301655,9.32854163,152.29,152.28,11.39071044]
[1751250301862,7.19314155,152.31,152.28,11.39071044]
[1751250302167,9.32854163,152.29,152.28,11.39071044]
[1751250302366,7.19314155,152.31,152.28,11.39071044]
[1751250302663,9.32854163,152.29,152.28,11.39071044]
[1751250302861,7.19314155,152.31,152.28,11.39071044]
[1751250303160,9.32854163,152.29,152.28,11.39071044]
[1751250303363,7.19314155,152.31,152.28,6.13911044]
[1751250303568,9.32854163,152.29,152.28,6.13911044]
[1751250303864,7.19314155,152.31,152.28,6.13911044]
[1751250304057,9.32854163,152.29,152.28,6.13911044]
[1751250304456,5.251,152.3,152.28,6.13911044]
[1751250304656,9.32854163,152.29,152.28,6.13911044]
[1751250304860,5.251,152.3,152.28,6.13911044]
[1751250305060,9.32854163,152.29,152.28,6.13911044]
[1751250305265,5.251,152.3,152.28,6.13911044]
[1751250305467,9.32854163,152.29,152.28,6.13911044]
[1751250305870,5.251,152.3,152.28,6.13911044]
[1751250306063,9.32854163,152.29,152.28,6.13911044]
[1751250307670,5.251,152.3,152.28,6.13911044]
[1751250307870,9.32854163,152.29,152.28,6.13911044]
[1751250308062,5.251,152.3,152.28,6.13911044]
[1751250308259,14.57984163,152.29,152.28,6.13911044]
[1751250311374,9.32854163,152.29,152.28,6.13911044]
[1751250326090,5.252,152.27,152.26,8.12893013]
[1751250326288,5.252,152.27,152.18,97.94774321]
[1751250326289,9.32854163,152.27,152.21,12.1933952]
[1751250326484,9.32854163,152.26,152.24,1.94239506]
[1751250326688,9.32854163,152.26,152.23,7.19569506]
[1751250327292,14.58104163,152.26,152.23,1.94239506]
[1751250327491,9.32854163,152.25,152.23,1.9431097]
[1751250327895,14.58144163,152.25,152.23,1.9431097]
[1751250328495,14.58144163,152.25,152.22,7.1967097]
[1751250329191,9.32854163,152.24,152.21,1.9431097]
[1751250329394,1.9431097,152.23,152.19,1.9431097]
[1751250329595,11.27165133,152.22,152.19,1.9431097]
[1751250329783,1.9431097,152.21,152.18,97.94774321]
[1751250330186,1.9431097,152.19,152.15,41.3566097]
[1751250330394,7.1978097,152.19,152.15,46.6124097]
[1751250330897,16.52635133,152.19,152.15,44.4190097]
[1751250331300,16.52635133,152.19,152.16,5.2557]
[1751250331598,11.27165133,152.19,152.16,5.2557]
[1751250333298,11.27165133,152.19,152.17,5.2554]
[1751250333498,11.27165133,152.18,152.15,32.52]
[1751250333692,9.32854163,152.2,152.17,1.9431097]
[1751250333888,9.32854163,152.2,152.18,1.9431097]
[1751250334297,9.32854163,152.2,152.19,5.2547]
[1751250335797,1.9431097,152.23,152.22,5.2537]
[1751250336000,9.32854163,152.23,152.22,5.2537]
[1751250339901,11.27165133,152.23,152.21,5.2539]
[1751250340100,9.32854163,152.22,152.21,5.2539]
[1751250342595,1.9431097,152.23,152.21,5.2539]
[1751250342796,9.32854163,152.22,152.21,5.2539]
[1751250343902,4.4529,152.26,152.24,5.2529]
[1751250344094,6.3960097,152.26,152.24,5.2529]
[1751250344299,9.32854163,152.25,152.24,5.2529]
[1751250347007,1.9431097,152.28,152.26,5.2522]
[1751250347507,9.32854163,152.27,152.26,5.2522]
[1751250348205,1.9431097,152.3,152.27,5.2518]
[1751250348503,1.9431097,152.3,152.27,7.1949097]
[1751250348698,9.32854163,152.28,152.27,7.1949097]
[1751250349601,9.32854163,152.28,152.27,5.2518]
[1751250349904,9.32854163,152.28,152.26,5.2522]
[1751250350104,9.32854163,152.27,152.26,5.2522]
[1751250350602,1.9431097,152.29,152.26,5.2522]
[1751250350905,9.32854163,152.27,152.26,5.2522]
[1751250351197,1.9431097,152.29,152.26,5.2522]
[1751250351402,9.32854163,152.27,152.26,5.2522]
[1751250351906,1.9431097,152.29,152.26,5.2522]
[1751250352102,9.32854163,152.27,152.26,5.2522]
[1751250352503,1.9431097,152.29,152.26,5.2522]
[1751250352803,9.32854163,152.27,152.26,5.2522]
[1751250353409,1.9431097,152.28,152.26,5.2522]
[1751250353608,9.32854163,152.27,152.26,5.2522]
[1751250353808,1.9431097,152.28,152.26,5.2522]
[1751250354006,9.32854163,152.27,152.26,5.2522]
[1751250354206,1.9431097,152.28,152.26,5.2522]
[1751250354403,9.32854163,152.27,152.26,5.2522]
[1751250355508,1.9431097,152.28,152.26,5.2522]
[1751250355806,9.32854163,152.27,152.26,5.2522]
[1751250356006,1.9431097,152.28,152.26,5.2522]
[1751250356198,9.32854163,152.27,152.26,5.2522]
[1751250356602,1.9431097,152.28,152.26,5.2522]
[1751250356799,9.32854163,152.27,152.26,5.2522]
[1751250357007,1.9431097,152.28,152.26,5.2522]
[1751250357214,11.27165133,152.27,152.25,5.2525]
[1751250357404,11.27165133,152.26,152.25,5.2525]
[1751250358112,9.32854163,152.26,152.25,5.2525]
[1751250360313,11.27165133,152.26,152.23,1.9431097]
[1751250360513,11.27165133,152.26,152.22,1.9431097]
[1751250361213,11.27165133,152.26,152.24,5.2527]
[1751250361419,9.32854163,152.26,152.24,5.2527]
[1751250361714,11.27165133,152.26,152.24,5.2527]
[1751250361906,9.32854163,152.26,152.25,5.2527]
[1751250366012,32.54,152.32,152.25,1.9431097]
[1751250366208,9.32854163,152.29,152.27,1.9431097]
[1751250367720,9.32854163,152.29,152.28,5.2516]
[1751250368309,7.1937097,152.31,152.28,5.2516]
[1751250368514,9.32854163,152.3,152.28,5.2516]
[1751250369316,9.32854163,152.3,152.27,1.9431097]
[1751250369518,9.32854163,152.3,152.28,1.9431097]
[1751250369714,9.32854163,152.3,152.24,32.54]
[1751250369916,9.32854163,152.3,152.26,3.03448783]
[1751250370516,14.57954163,152.3,152.26,3.03448783]
[1751250370821,9.32854163,152.29,152.26,3.03448783]
[1751250371214,5.251,152.3,152.26,3.03448783]
[1751250371414,9.32854163,152.29,152.26,3.03448783]
[1751250371822,14.57994163,152.29,152.26,3.03448783]
[1751250372017,5.2514,152.29,152.26,3.03448783]
[1751250373018,5.2517,152.28,152.26,3.03448783]
[1751250373318,9.32854163,152.29,152.26,3.03448783]
[1751250373617,5.2517,152.28,152.26,3.03448783]
[1751250374716,5.252,152.27,152.26,3.03448783]
[1751250375922,5.2527,152.26,152.24,35.57448783]
[1751250376522,5.2527,152.25,152.24,35.57448783]
[1751250377820,3.03448783,152.31,152.24,35.57448783]
[1751250378019,9.32854163,152.27,152.24,35.57448783]
[1751250378520,5.2527,152.25,152.24,35.57448783]
[1751250378922,5.2527,152.25,152.21,10.36764019]
[1751250378923,3.03448783,152.29,152.21,37.74978783]
[1751250379113,9.32854163,152.25,152.21,35.53448783]
[1751250379515,5.2537,152.22,152.21,32.5]
[1751250379724,9.32854163,152.23,152.18,35.53448783]
[1751250380120,5.2547,152.19,152.18,35.53448783]
[1751250383319,5.2547,152.19,152.18,32.5]
[1751250383724,5.2554,152.17,152.16,8.15234019]
[1751250383924,9.32854163,152.18,152.15,486.63041539]
[1751250384130,9.32854163,152.18,152.15,132.05041539]
[1751250384427,5.2558,152.16,152.15,132.05041539]
[1751250386232,5.2558,152.16,152.15,138.17570852]
[1751250390740,5.2556,152.17,152.15,138.17570852]
[1751250390928,14.58414163,152.17,152.15,138.17570852]
[1751250391132,5.2556,152.17,152.15,138.17570852]
[1751250392138,5.2556,152.17,152.15,132.05041539]
[1751250395237,5.2552,152.18,152.15,132.05041539]
[1751250395438,9.32854163,152.17,152.15,132.05041539]
[1751250395835,5.2552,152.18,152.15,132.05041539]
[1751250396036,9.32854163,152.17,152.15,132.05041539]
[1751250396236,5.2552,152.18,152.15,132.05041539]
[1751250396439,9.32854163,152.17,152.15,132.05041539]
[1751250396635,5.2552,152.18,152.15,132.05041539]
[1751250396835,9.32854163,152.17,152.15,132.05041539]
[1751250397136,5.2552,152.18,152.15,132.05041539]
[1751250397335,9.32854163,152.17,152.15,132.05041539]
[1751250397840,5.2549,152.19,152.15,137.30651539]
[1751250398037,6.832,152.23,152.16,3.03448783]
[1751250398238,9.32854163,152.2,152.18,3.03448783]
[1751250398535,9.32854163,152.21,152.18,3.03448783]
[1751250398939,9.32854163,152.21,152.19,5.2547]
[1751250399741,9.32854163,152.21,152.2,5.2544]
[1751250399937,3.03448783,152.25,152.2,5.2544]
[1751250400137,9.32854163,152.21,152.2,5.2544]
[1751250400548,5.2528,152.25,152.21,5.2538]
[1751250400843,35.55448783,152.26,152.21,5.2538]
[1751250400844,5.2531,152.24,152.21,5.2538]
[1751250401136,9.32854163,152.22,152.21,5.2538]
[1751250405946,5.2531,152.24,152.21,5.2538]
[1751250406242,9.32854163,152.23,152.22,5.2537]
[1751250406647,5.2528,152.25,152.22,5.2537]
[1751250406947,9.32854163,152.23,152.22,5.2537]
[1751250407447,5.2528,152.25,152.22,5.2537]
[1751250407647,9.32854163,152.23,152.22,5.2537]
[1751250407848,5.2528,152.25,152.22,5.2537]
[1751250408148,9.32854163,152.23,152.22,5.2537]
[1751250408349,5.2528,152.25,152.22,5.2537]
[1751250408552,9.32854163,152.23,152.22,5.2537]
[1751250408749,5.2528,152.25,152.22,5.2537]
[1751250409049,9.32854163,152.23,152.22,5.2537]
[1751250409252,5.2528,152.25,152.22,5.2537]
[1751250409446,9.32854163,152.23,152.22,5.2537]
[1751250409749,5.2528,152.25,152.22,5.2537]
[1751250409952,9.32854163,152.23,152.22,5.2537]
[1751250410245,5.253,152.24,152.22,5.2537]
[1751250410551,9.32854163,152.23,152.21,5.2539]
[1751250410741,9.32854163,152.23,152.19,35.53448783]
[1751250410945,5.253,152.24,152.19,35.53448783]
[1751250411240,9.32854163,152.23,152.19,35.53448783]
[1751250411443,5.253,152.24,152.19,35.53448783]
[1751250411641,9.32854163,152.23,152.21,5.2538]
[1751250415654,14.58194163,152.23,152.2,5.2543]
[1751250416750,9.32854163,152.23,152.2,5.2543]
[1751250417453,9.32854163,152.23,152.21,5.254]
[1751250417952,9.32854163,152.22,152.21,5.254]
[1751250418350,5.2532,152.24,152.21,5.254]
[1751250418550,9.32854163,152.22,152.21,5.254]
[1751250419653,5.2534,152.23,152.21,5.254]
[1751250419852,9.32854163,152.22,152.21,5.254]
[1751250420053,5.2534,152.23,152.21,5.254]
[1751250420254,9.32854163,152.22,152.21,5.254]
[1751250420448,5.2534,152.23,152.21,5.254]
[1751250420647,9.32854163,152.22,152.21,5.254]
[1751250420847,14.58244163,152.22,152.19,38.62529313]
[1751250421046,9.32854163,152.21,152.19,38.62529313]
[1751250421245,9.32854163,152.21,152.19,43.87989313]
[1751250421463,9.32854163,152.21,152.19,37.7546]
[1751250421647,14.58264163,152.21,152.19,37.7546]
[1751250421854,14.58264163,152.21,152.19,5.2546]
[1751250422150,9.32854163,152.2,152.19,5.2546]
[1751250422560,5.2541,152.21,152.19,5.2546]
[1751250422859,9.32854163,152.2,152.19,5.2546]
[1751250423059,9.32854163,152.2,152.19,7.19898353]
[1751250423355,5.2538,152.22,152.19,11.37989313]
[1751250423558,9.32854163,152.2,152.19,13.32427666]
[1751250423760,9.32854163,152.2,152.19,11.37989313]
[1751250423959,5.2538,152.22,152.19,11.37989313]
[1751250424159,9.32854163,152.2,152.19,11.37989313]
[1751250424461,5.2538,152.22,152.19,11.37989313]
[1751250424659,9.32854163,152.2,152.19,11.37989313]
[1751250425561,5.2538,152.22,152.19,11.37989313]
[1751250425859,9.32854163,152.2,152.19,11.37989313]
[1751250426060,5.2538,152.22,152.19,11.37989313]
[1751250426258,9.32854163,152.2,152.19,11.37989313]
[1751250426453,5.2538,152.22,152.19,11.37989313]
[1751250426651,9.32854163,152.2,152.19,11.37989313]
[1751250426949,5.2538,152.22,152.19,11.37989313]
[1751250427147,9.32854163,152.2,152.19,11.37989313]
[1751250427460,9.32854163,152.2,152.19,6.12529313]
[1751250427662,5.2541,152.21,152.19,6.12529313]
[1751250427857,9.32854163,152.2,152.19,6.12529313]
[1751250428056,5.2541,152.21,152.19,6.12529313]
[1751250428257,9.32854163,152.2,152.19,6.12529313]
[1751250428653,5.2541,152.21,152.19,6.12529313]
[1751250428862,9.32854163,152.2,152.19,6.12529313]
[1751250429063,5.2541,152.21,152.19,6.12529313]
[1751250429362,9.32854163,152.2,152.19,6.12529313]
[1751250430366,9.32854163,152.2,152.19,11.37999313]
[1751250430663,5.2538,152.22,152.19,11.37999313]
[1751250430864,9.32854163,152.2,152.19,11.37999313]
[1751250431063,5.2538,152.22,152.19,11.37999313]
[1751250431266,9.32854163,152.2,152.19,11.37999313]
[1751250431462,5.2538,152.22,152.19,11.37999313]
[1751250431662,9.32854163,152.21,152.19,11.37999313]
[1751250432955,5.2535,152.23,152.2,11.37969313]
[1751250433160,9.32854163,152.22,152.2,6.12529313]
[1751250433563,5.2532,152.24,152.2,11.37959313]
[1751250433760,9.32854163,152.22,152.2,6.12529313]
[1751250434369,5.2532,152.24,152.2,6.12529313]
[1751250434562,9.32854163,152.22,152.21,5.2541]
[1751250434965,5.2532,152.24,152.21,5.2541]
[1751250435161,9.32854163,152.22,152.21,11.37939313]
[1751250435767,5.2532,152.24,152.21,11.37939313]
[1751250435968,9.32854163,152.22,152.21,11.37939313]
[1751250436167,5.2532,152.24,152.21,11.37939313]
[1751250436367,9.32854163,152.22,152.21,11.37939313]
[1751250436564,5.2532,152.24,152.21,11.37939313]
[1751250436771,9.32854163,152.22,152.21,11.37939313]
[1751250437070,9.32854163,152.22,152.21,6.12529313]
[1751250437262,5.2532,152.24,152.21,6.12529313]
[1751250437459,9.32854163,152.24,152.21,9.16313143]
[1751250437768,9.6996383,152.28,152.23,11.37839313]
[1751250437960,9.32854163,152.25,152.23,6.12529313]
[1751250438364,5.2521,152.27,152.23,11.37849313]
[1751250438669,9.32854163,152.25,152.23,11.37849313]
[1751250438869,5.2521,152.27,152.23,11.37849313]
[1751250439071,9.32854163,152.25,152.23,11.37849313]
[1751250439570,5.2523,152.26,152.23,11.37849313]
[1751250439769,9.32854163,152.25,152.23,11.37849313]
[1751250439971,5.2523,152.26,152.23,11.37849313]
[1751250440273,9.32854163,152.25,152.23,11.37849313]
[1751250440770,5.2523,152.26,152.23,11.37849313]
[1751250440971,9.32854163,152.25,152.23,11.37849313]
[1751250441271,5.2521,152.27,152.24,11.37829313]
[1751250441472,9.32854163,152.26,152.24,11.37829313]
[1751250442671,5.2518,152.28,152.25,14.41583143]
[1751250442869,14.58034163,152.28,152.25,14.41583143]
[1751250443670,9.32854163,152.28,152.25,14.41583143]
[1751250443871,9.32854163,152.28,152.26,11.37759313]
[1751250444271,5.2514,152.29,152.26,5.2523]
[1751250444470,9.32854163,152.28,152.26,5.2523]
[1751250444872,5.2514,152.29,152.26,5.2523]
[1751250445073,9.32854163,152.28,152.26,5.2523]
[1751250445571,5.2514,152.29,152.26,5.2523]
[1751250445771,9.32854163,152.28,152.26,5.2523]
[1751250445975,5.2514,152.29,152.26,5.2523]
[1751250446168,9.32854163,152.28,152.25,14.41553143]
[1751250446365,3.0378383,152.34,152.27,9.16313143]
[1751250446571,9.32854163,152.3,152.27,9.16313143]
[1751250446971,3.0378383,152.34,152.27,9.16313143]
[1751250447167,9.32854163,152.3,152.27,9.16313143]
[1751250447573,5.2506,152.31,152.28,5.2514]
[1751250447769,9.32854163,152.3,152.28,5.2514]
[1751250448068,5.2506,152.31,152.28,5.2514]
[1751250448270,9.32854163,152.3,152.28,5.2514]
[1751250448671,5.2506,152.31,152.28,5.2514]
[1751250448874,9.32854163,152.3,152.28,5.2514]
[1751250449172,5.2506,152.31,152.28,5.2514]
[1751250449379,9.32854163,152.3,152.28,5.2514]
[1751250449974,5.2506,152.31,152.28,5.2514]
[1751250450175,9.32854163,152.3,152.28,5.2514]
[1751250450576,5.2506,152.31,152.28,5.2514]
[1751250450769,9.32854163,152.3,152.28,5.2514]
[1751250451071,5.2506,152.31,152.28,5.2514]
[1751250451272,9.32854163,152.3,152.28,5.2514]
[1751250452276,5.2504,152.32,152.28,5.2514]
[1751250452579,9.32854163,152.3,152.28,5.2514]
[1751250453077,5.2506,152.31,152.28,5.2514]
[1751250453267,9.32854163,152.3,152.28,5.2514]
[1751250453979,5.2506,152.31,152.28,5.2514]
[1751250454179,9.32854163,152.29,152.25,9.16313143]
[1751250454373,9.32854163,152.28,152.25,3.0378383]
[1751250454683,9.32854163,152.28,152.25,8.2902383]
[1751250455278,9.32854163,152.28,152.26,5.2521]
[1751250455480,3.0378383,152.32,152.25,9.16313143]
[1751250455681,9.32854163,152.29,152.25,9.16313143]
[1751250455879,9.32854163,152.29,152.28,5.2514]
[1751250456179,5.2501,152.33,152.27,3.0378383]
[1751250456379,9.32854163,152.31,152.28,32.48]
[1751250456580,9.32854163,152.31,152.3,5.2509]
[1751250456780,10.6289383,152.34,152.28,32.48]
[1751250456977,9.32854163,152.31,152.28,32.48]
[1751250457178,10.6289383,152.34,152.3,5.2507]
[1751250457480,9.32854163,152.31,152.3,5.2507]
[1751250457875,10.6289383,152.34,152.3,5.2507]
[1751250458175,9.32854163,152.31,152.3,5.2507]
[1751250458375,10.6289383,152.34,152.3,5.2507]
[1751250458576,9.32854163,152.31,152.3,5.2507]
[1751250459279,10.6289383,152.34,152.3,5.2507]
[1751250459481,9.32854163,152.31,152.3,5.2507]
[1751250459680,10.6289383,152.34,152.3,5.2507]
[1751250459880,9.32854163,152.31,152.3,5.2507]
[1751250460080,5.2499,152.33,152.3,5.2507]
[1751250460280,9.32854163,152.31,152.3,5.2507]
[1751250460879,5.2499,152.33,152.3,5.2507]
[1751250461073,9.32854163,152.31,152.3,5.2507]
[1751250461271,9.32854163,152.31,152.29,5.2511]
[1751250462682,5.2503,152.32,152.29,5.2511]
[1751250462885,9.32854163,152.3,152.29,5.2511]
[1751250463082,5.2503,152.32,152.29,5.2511]
[1751250463382,9.32854163,152.3,152.29,5.2511]
[1751250463577,5.2503,152.32,152.29,5.2511]
[1751250463784,9.32854163,152.3,152.29,5.2511]
[1751250464481,5.2503,152.32,152.29,5.2511]
[1751250464684,9.32854163,152.3,152.29,5.2511]
[1751250464984,9.32854163,152.3,152.28,37.7315]
[1751250466083,9.32854163,152.3,152.29,5.2513]
[1751250466284,5.2504,152.32,152.29,5.2513]
[1751250466583,9.32854163,152.3,152.29,5.2513]
[1751250466979,5.2504,152.32,152.29,5.2513]
[1751250467179,9.32854163,152.3,152.29,5.2513]
[1751250467681,5.2504,152.32,152.29,5.2513]
[1751250467882,9.32854163,152.3,152.29,5.2513]
[1751250468183,5.2504,152.32,152.29,5.2513]
[1751250468480,9.32854163,152.3,152.29,5.2513]
[1751250468685,5.2504,152.32,152.29,5.2513]
[1751250468884,9.32854163,152.3,152.29,5.2513]
[1751250469887,5.2504,152.32,152.29,5.2513]
[1751250470086,9.32854163,152.3,152.29,5.2513]
[1751250470386,5.2504,152.32,152.29,5.2513]
[1751250470581,9.32854163,152.3,152.29,5.2513]
[1751250472383,5.2504,152.32,152.29,5.2513]
[1751250472584,9.32854163,152.3,152.29,5.2513]